[Event "Titled Tuesday Blitz June 20 Early 2023"]
[White "Francisco_Ferrari"]
[Black "Gyulamiryan-koryun"]
[WhiteElo "2264"]
[BlackElo "1747"]
[Result "1-0"]
[Round "7"]
[TimeControl "180+2"]
[Date "2023.06.20"]
[WhiteClock "0:00:45"]
[BlackClock "0:00:00"]
[Board "175"]

1. e4 {[%clk 0:03:00]}  c5 {[%clk 0:02:59]} 2. Nf3 {[%clk 0:02:59]}  d6 {[%clk 0:02:58]} 3. d4 {[%clk 0:02:56]}  cxd4 {[%clk 0:02:58]} 4. Nxd4 {[%clk 0:02:57]}  Nf6 {[%clk 0:02:58]} 5. Nc3 {[%clk 0:02:57]}  a6 {[%clk 0:02:59]} 6. h3 {[%clk 0:02:52]}  e6 {[%clk 0:02:54]} 7. g4 {[%clk 0:02:45]}  d5 {[%clk 0:02:54]} 8. e5 {[%clk 0:02:28]}  Nfd7 {[%clk 0:02:53]} 9. f4 {[%clk 0:02:18]}  Qh4+ {[%clk 0:02:50]} 10. Ke2 {[%clk 0:02:13]}  h5 {[%clk 0:02:46]} 11. g5 {[%clk 0:02:05]}  Nc6 {[%clk 0:02:28]} 12. Nf3 {[%clk 0:02:05]}  Qg3 {[%clk 0:02:18]} 13. Rg1 {[%clk 0:02:03]}  Qxg1 {[%clk 0:01:11]} 14. Nxg1 {[%clk 0:02:04]}  Bc5 {[%clk 0:01:05]} 15. Nf3 {[%clk 0:02:04]}  b5 {[%clk 0:01:03]} 16. Be3 {[%clk 0:01:52]}  Be7 {[%clk 0:01:02]} 17. a3 {[%clk 0:01:43]}  Bb7 {[%clk 0:01:02]} 18. Nd4 {[%clk 0:01:43]}  Na5 {[%clk 0:01:01]} 19. Bg2 {[%clk 0:01:34]}  Nc4 {[%clk 0:01:00]} 20. Bc1 {[%clk 0:01:31]}  Rc8 {[%clk 0:00:59]} 21. b3 {[%clk 0:01:19]}  Ncxe5 {[%clk 0:00:49]} 22. Ncxb5 {[%clk 0:01:14]}  axb5 {[%clk 0:00:45]} 23. fxe5 {[%clk 0:01:14]}  Nxe5 {[%clk 0:00:41]} 24. Bf4 {[%clk 0:01:10]}  Ng6 {[%clk 0:00:36]} 25. Be3 {[%clk 0:01:06]}  Ba6 {[%clk 0:00:23]} 26. b4 {[%clk 0:00:59]}  Nh4 {[%clk 0:00:21]} 27. Bh1 {[%clk 0:00:57]}  O-O {[%clk 0:00:20]} 28. Nb3 {[%clk 0:00:57]}  Nf5 {[%clk 0:00:17]} 29. Bc5 {[%clk 0:00:57]}  Bxg5 {[%clk 0:00:14]} 30. Bxf8 {[%clk 0:00:55]}  Kxf8 {[%clk 0:00:14]} 31. Nc5 {[%clk 0:00:55]}  Ng3+ {[%clk 0:00:11]} 32. Kf3 {[%clk 0:00:55]}  Nxh1 {[%clk 0:00:10]} 33. Qxh1 {[%clk 0:00:56]}  Ra8 {[%clk 0:00:09]} 34. Rg1 {[%clk 0:00:55]}  Bf6 {[%clk 0:00:08]} 35. Rd1 {[%clk 0:00:50]}  Bc8 {[%clk 0:00:08]} 36. Rd3 {[%clk 0:00:50]}  e5 {[%clk 0:00:08]} 37. Rxd5 {[%clk 0:00:50]}  Rxa3+ {[%clk 0:00:08]} 38. Rd3 {[%clk 0:00:47]}  Ra2 {[%clk 0:00:05]} 39. Qd1 {[%clk 0:00:45]}  g6 {[%clk 0:00:03]} 40. Rd8+ {[%clk 0:00:44]}  Bxd8 {[%clk 0:00:03]} 41. Qxd8+ {[%clk 0:00:45]}  Kg7 {[%clk 0:00:03]} 42. Qxc8 {[%clk 0:00:45]}  Rxc2 {[%clk 0:00:00]} 43. Ne6+ {[%clk 0:00:45]} 1-0


[Site "https://www.chess.com"]

[Event "Titled Tuesday Blitz June 20 Early 2023"]
[White "Martin, Lewis"]
[Black "Zallio, Luciano de Souza"]
[WhiteFideId "410551"]
[BlackFideId "2109700"]
[WhiteElo "2145"]
[BlackElo "2057"]
[Result "1-0"]
[Round "7"]
[TimeControl "180+2"]
[Date "2023.06.20"]
[WhiteClock "0:01:42"]
[BlackClock "0:01:19"]
[Board "178"]

1. e4 {[%clk 0:02:53]}  e6 {[%clk 0:02:56]} 2. d4 {[%clk 0:02:52]}  d5 {[%clk 0:02:57]} 3. Nd2 {[%clk 0:02:52]}  dxe4 {[%clk 0:02:55]} 4. Nxe4 {[%clk 0:02:52]}  Nd7 {[%clk 0:02:56]} 5. Bd3 {[%clk 0:02:49]}  Ngf6 {[%clk 0:02:56]} 6. Nxf6+ {[%clk 0:02:49]}  Nxf6 {[%clk 0:02:56]} 7. Nf3 {[%clk 0:02:50]}  c5 {[%clk 0:02:53]} 8. dxc5 {[%clk 0:02:46]}  Bxc5 {[%clk 0:02:54]} 9. O-O {[%clk 0:02:46]}  O-O {[%clk 0:02:54]} 10. Bg5 {[%clk 0:02:43]}  h6 {[%clk 0:02:52]} 11. Bh4 {[%clk 0:02:43]}  b6 {[%clk 0:02:45]} 12. Qe2 {[%clk 0:02:37]}  Bb7 {[%clk 0:02:44]} 13. Rfd1 {[%clk 0:02:38]}  Qe7 {[%clk 0:02:41]} 14. a3 {[%clk 0:02:33]}  a5 {[%clk 0:02:41]} 15. Ne5 {[%clk 0:02:27]}  Rfd8 {[%clk 0:02:26]} 16. Ng4 {[%clk 0:02:12]}  g5 {[%clk 0:02:10]} 17. Nxh6+ {[%clk 0:02:10]}  Kg7 {[%clk 0:02:10]} 18. Bxg5 {[%clk 0:02:10]}  Rd4 {[%clk 0:01:49]} 19. Ng4 {[%clk 0:02:03]}  Rxg4 {[%clk 0:01:41]} 20. Bxf6+ {[%clk 0:02:01]}  Qxf6 {[%clk 0:01:41]} 21. Qxg4+ {[%clk 0:02:02]}  Kf8 {[%clk 0:01:41]} 22. Rf1 {[%clk 0:01:54]}  Ke7 {[%clk 0:01:33]} 23. Be4 {[%clk 0:01:47]}  Qd4 {[%clk 0:01:19]} 24. Qg5+ {[%clk 0:01:42]} 1-0


[Site "https://www.chess.com"]

[Event "Titled Tuesday Blitz June 20 Early 2023"]
[White "Nikulina, Alena"]
[Black "Slovineanu, Viacheslav"]
[WhiteFideId "4172051"]
[BlackFideId "13900510"]
[WhiteElo "1608"]
[BlackElo "2312"]
[Result "1-0"]
[Round "7"]
[TimeControl "180+2"]
[Date "2023.06.20"]
[WhiteClock "0:00:12"]
[BlackClock "0:00:00"]
[Board "180"]

1. e4 {[%clk 0:03:00]}  c6 {[%clk 0:02:54]} 2. Nc3 {[%clk 0:02:58]}  d5 {[%clk 0:02:54]} 3. Qe2 {[%clk 0:02:57]}  dxe4 {[%clk 0:02:51]} 4. Nxe4 {[%clk 0:02:56]}  Bf5 {[%clk 0:02:43]} 5. g3 {[%clk 0:02:54]}  e6 {[%clk 0:02:39]} 6. Bg2 {[%clk 0:02:54]}  Nd7 {[%clk 0:02:36]} 7. d3 {[%clk 0:02:46]}  Ngf6 {[%clk 0:02:35]} 8. Nf3 {[%clk 0:02:35]}  Bxe4 {[%clk 0:02:16]} 9. dxe4 {[%clk 0:02:34]}  Qc7 {[%clk 0:02:07]} 10. O-O {[%clk 0:02:24]}  e5 {[%clk 0:02:04]} 11. b3 {[%clk 0:02:06]}  Bc5 {[%clk 0:01:59]} 12. Bb2 {[%clk 0:02:04]}  O-O {[%clk 0:01:59]} 13. Rad1 {[%clk 0:02:03]}  Rfe8 {[%clk 0:01:59]} 14. Nd2 {[%clk 0:01:54]}  a5 {[%clk 0:01:55]} 15. a4 {[%clk 0:01:53]}  Rab8 {[%clk 0:01:32]} 16. c4 {[%clk 0:01:33]}  Bb4 {[%clk 0:01:28]} 17. Kh1 {[%clk 0:01:19]}  Nc5 {[%clk 0:01:25]} 18. Qe3 {[%clk 0:00:55]}  Rbd8 {[%clk 0:01:09]} 19. Bc3 {[%clk 0:00:50]}  Rd3 {[%clk 0:01:03]} 20. Bxb4 {[%clk 0:00:39]}  Rxe3 {[%clk 0:01:02]} 21. Bxc5 {[%clk 0:00:39]}  Rd3 {[%clk 0:00:59]} 22. Nf3 {[%clk 0:00:32]}  Red8 {[%clk 0:00:57]} 23. Rde1 {[%clk 0:00:28]}  Rxb3 {[%clk 0:00:53]} 24. Be3 {[%clk 0:00:19]}  Nxe4 {[%clk 0:00:48]} 25. h3 {[%clk 0:00:15]}  f5 {[%clk 0:00:47]} 26. Nh4 {[%clk 0:00:14]}  g6 {[%clk 0:00:45]} 27. Bxe4 {[%clk 0:00:13]}  fxe4 {[%clk 0:00:46]} 28. Bg5 {[%clk 0:00:14]}  Rd4 {[%clk 0:00:40]} 29. Re2 {[%clk 0:00:12]}  b5 {[%clk 0:00:34]} 30. cxb5 {[%clk 0:00:11]}  cxb5 {[%clk 0:00:29]} 31. axb5 {[%clk 0:00:12]}  a4 {[%clk 0:00:28]} 32. Rfe1 {[%clk 0:00:11]}  a3 {[%clk 0:00:28]} 33. Ng2 {[%clk 0:00:10]}  a2 {[%clk 0:00:27]} 34. Rxa2 {[%clk 0:00:10]}  e3 {[%clk 0:00:19]} 35. Nxe3 {[%clk 0:00:08]}  Rxe3 {[%clk 0:00:17]} 36. Bxe3 {[%clk 0:00:08]}  Rb4 {[%clk 0:00:16]} 37. Rae2 {[%clk 0:00:08]}  Rxb5 {[%clk 0:00:14]} 38. Kg1 {[%clk 0:00:08]}  Qb7 {[%clk 0:00:13]} 39. Bh6 {[%clk 0:00:08]}  Rb1 {[%clk 0:00:11]} 40. Rxe5 {[%clk 0:00:08]}  Rxe1+ {[%clk 0:00:09]} 41. Rxe1 {[%clk 0:00:09]}  Kf7 {[%clk 0:00:09]} 42. Be3 {[%clk 0:00:09]}  Qf3 {[%clk 0:00:08]} 43. Kf1 {[%clk 0:00:09]}  h5 {[%clk 0:00:07]} 44. h4 {[%clk 0:00:09]}  Ke7 {[%clk 0:00:05]} 45. Rc1 {[%clk 0:00:10]}  Ke6 {[%clk 0:00:04]} 46. Kg1 {[%clk 0:00:10]}  Kf5 {[%clk 0:00:04]} 47. Kf1 {[%clk 0:00:11]}  Kg4 {[%clk 0:00:04]} 48. Ke1 {[%clk 0:00:11]}  Kh3 {[%clk 0:00:04]} 49. Kd2 {[%clk 0:00:11]}  Kg2 {[%clk 0:00:04]} 50. Re1 {[%clk 0:00:12]}  Qd5+ {[%clk 0:00:04]} 51. Ke2 {[%clk 0:00:12]}  Qc4+ {[%clk 0:00:00]} 52. Kd2 {[%clk 0:00:12]} 1-0


[Site "https://www.chess.com"]

[Event "Titled Tuesday Blitz June 20 Early 2023"]
[White "Kiseleva, Arina"]
[Black "Porat, Tori"]
[WhiteFideId "4164989"]
[BlackFideId "30982626"]
[WhiteElo "1701"]
[BlackElo "1752"]
[Result "1-0"]
[Round "7"]
[TimeControl "180+2"]
[Date "2023.06.20"]
[WhiteClock "0:00:11"]
[BlackClock "0:00:00"]
[Board "183"]

1. d4 {[%clk 0:03:00]}  d5 {[%clk 0:03:00]} 2. Nf3 {[%clk 0:03:00]}  Nf6 {[%clk 0:02:59]} 3. e3 {[%clk 0:03:01]}  c5 {[%clk 0:02:57]} 4. Bd3 {[%clk 0:03:00]}  e6 {[%clk 0:02:56]} 5. O-O {[%clk 0:02:59]}  Nc6 {[%clk 0:02:55]} 6. b3 {[%clk 0:02:58]}  cxd4 {[%clk 0:02:54]} 7. exd4 {[%clk 0:02:57]}  Bd6 {[%clk 0:02:54]} 8. Bb2 {[%clk 0:02:57]}  O-O {[%clk 0:02:53]} 9. Nbd2 {[%clk 0:02:56]}  a6 {[%clk 0:02:52]} 10. Ne5 {[%clk 0:02:54]}  Qc7 {[%clk 0:02:47]} 11. Re1 {[%clk 0:02:35]}  b5 {[%clk 0:02:39]} 12. a3 {[%clk 0:02:33]}  Nd7 {[%clk 0:02:37]} 13. f4 {[%clk 0:02:15]}  f6 {[%clk 0:02:25]} 14. Nxc6 {[%clk 0:02:02]}  Qxc6 {[%clk 0:02:25]} 15. Rxe6 {[%clk 0:02:02]}  Ne5 {[%clk 0:02:17]} 16. Rxd6 {[%clk 0:01:51]}  Qxd6 {[%clk 0:02:16]} 17. dxe5 {[%clk 0:01:51]}  fxe5 {[%clk 0:02:16]} 18. Bxe5 {[%clk 0:01:49]}  Qc5+ {[%clk 0:02:14]} 19. Kh1 {[%clk 0:01:48]}  Be6 {[%clk 0:02:11]} 20. Qh5 {[%clk 0:01:43]}  h6 {[%clk 0:02:01]} 21. Qg6 {[%clk 0:01:42]}  Ra7 {[%clk 0:00:52]} 22. Qxe6+ {[%clk 0:01:27]}  Kh8 {[%clk 0:00:50]} 23. Qxh6+ {[%clk 0:01:25]}  Kg8 {[%clk 0:00:48]} 24. Qh7+ {[%clk 0:01:12]}  Kf7 {[%clk 0:00:48]} 25. Qxg7+ {[%clk 0:01:12]}  Ke8 {[%clk 0:00:42]} 26. Qg6+ {[%clk 0:00:47]}  Kd8 {[%clk 0:00:40]} 27. Bd6 {[%clk 0:00:40]}  Qc3 {[%clk 0:00:34]} 28. Re1 {[%clk 0:00:34]}  Qxd2 {[%clk 0:00:31]} 29. Rf1 {[%clk 0:00:21]}  Re8 {[%clk 0:00:23]} 30. Bf5 {[%clk 0:00:13]}  Qd4 {[%clk 0:00:08]} 31. Qg5+ {[%clk 0:00:12]}  Rae7 {[%clk 0:00:03]} 32. Bxe7+ {[%clk 0:00:12]}  Rxe7 {[%clk 0:00:03]} 33. Re1 {[%clk 0:00:12]}  Qc5 {[%clk 0:00:01]} 34. b4 {[%clk 0:00:11]}  Qd6 {[%clk 0:00:01]} 35. Qxe7+ {[%clk 0:00:10]}  Qxe7 {[%clk 0:00:01]} 36. Rxe7 {[%clk 0:00:11]}  Kxe7 {[%clk 0:00:02]} 37. Bd3 {[%clk 0:00:10]}  Ke6 {[%clk 0:00:02]} 38. Kg1 {[%clk 0:00:10]}  Kf6 {[%clk 0:00:02]} 39. Kf2 {[%clk 0:00:10]}  d4 {[%clk 0:00:02]} 40. Kf3 {[%clk 0:00:10]}  Ke6 {[%clk 0:00:00]} 41. Ke4 {[%clk 0:00:11]} 1-0


[Site "https://www.chess.com"]

[Event "Titled Tuesday Blitz June 20 Early 2023"]
[White "Modric, Nesa"]
[Black "Saim, Mohamed Ilias"]
[WhiteFideId "922579"]
[BlackFideId "7900465"]
[WhiteElo "2167"]
[BlackElo "2063"]
[Result "0-1"]
[Round "7"]
[TimeControl "180+2"]
[Date "2023.06.20"]
[WhiteClock "0:00:04"]
[BlackClock "0:00:19"]
[Board "186"]

1. e4 {[%clk 0:03:00]}  c6 {[%clk 0:03:00]} 2. d4 {[%clk 0:03:00]}  d5 {[%clk 0:03:00]} 3. e5 {[%clk 0:03:00]}  Bf5 {[%clk 0:03:01]} 4. Nf3 {[%clk 0:03:01]}  e6 {[%clk 0:03:01]} 5. Be2 {[%clk 0:03:01]}  c5 {[%clk 0:03:00]} 6. O-O {[%clk 0:03:01]}  cxd4 {[%clk 0:02:58]} 7. Nxd4 {[%clk 0:03:01]}  Ne7 {[%clk 0:02:58]} 8. c4 {[%clk 0:02:49]}  Nbc6 {[%clk 0:02:53]} 9. Nxf5 {[%clk 0:02:27]}  Nxf5 {[%clk 0:02:47]} 10. cxd5 {[%clk 0:02:25]}  Qxd5 {[%clk 0:02:47]} 11. Qxd5 {[%clk 0:02:22]}  exd5 {[%clk 0:02:47]} 12. Nc3 {[%clk 0:02:17]}  O-O-O {[%clk 0:02:01]} 13. Bg4 {[%clk 0:01:57]}  g6 {[%clk 0:02:02]} 14. Bg5 {[%clk 0:01:49]}  Rd7 {[%clk 0:01:42]} 15. Rfe1 {[%clk 0:01:21]}  Bb4 {[%clk 0:01:38]} 16. a3 {[%clk 0:01:15]}  Bxc3 {[%clk 0:01:37]} 17. bxc3 {[%clk 0:01:15]}  Re8 {[%clk 0:01:28]} 18. f4 {[%clk 0:01:07]}  Kb8 {[%clk 0:01:20]} 19. Rad1 {[%clk 0:00:59]}  h5 {[%clk 0:00:58]} 20. Bf3 {[%clk 0:00:47]}  d4 {[%clk 0:00:50]} 21. Bxc6 {[%clk 0:00:37]}  bxc6 {[%clk 0:00:50]} 22. cxd4 {[%clk 0:00:32]}  Rxd4 {[%clk 0:00:48]} 23. Rxd4 {[%clk 0:00:32]}  Nxd4 {[%clk 0:00:49]} 24. Rb1+ {[%clk 0:00:31]}  Kc7 {[%clk 0:00:42]} 25. h3 {[%clk 0:00:29]}  Rb8 {[%clk 0:00:39]} 26. Rxb8 {[%clk 0:00:28]}  Kxb8 {[%clk 0:00:40]} 27. g4 {[%clk 0:00:27]}  Kc7 {[%clk 0:00:37]} 28. Kf2 {[%clk 0:00:26]}  Kb6 {[%clk 0:00:36]} 29. Ke3 {[%clk 0:00:25]}  c5 {[%clk 0:00:36]} 30. Bf6 {[%clk 0:00:13]}  Nc2+ {[%clk 0:00:35]} 31. Kd3 {[%clk 0:00:11]}  Nxa3 {[%clk 0:00:36]} 32. gxh5 {[%clk 0:00:12]}  gxh5 {[%clk 0:00:35]} 33. f5 {[%clk 0:00:12]}  Kc6 {[%clk 0:00:31]} 34. e6 {[%clk 0:00:10]}  fxe6 {[%clk 0:00:28]} 35. Be7 {[%clk 0:00:09]}  exf5 {[%clk 0:00:20]} 36. Bg5 {[%clk 0:00:08]}  Kd5 {[%clk 0:00:19]} 37. Bf4 {[%clk 0:00:06]}  c4+ {[%clk 0:00:20]} 38. Kc3 {[%clk 0:00:06]}  Nb5+ {[%clk 0:00:20]} 39. Kb4 {[%clk 0:00:06]}  Nd4 {[%clk 0:00:20]} 40. Be3 {[%clk 0:00:04]}  Nc2+ {[%clk 0:00:19]} 0-1


[Site "https://www.chess.com"]

[Event "Titled Tuesday Blitz June 20 Early 2023"]
[White "Dzhaparov, Medet"]
[Black "Floresvillar Gonzalez, Luis Migu"]
[WhiteFideId "13803689"]
[BlackFideId "5100542"]
[WhiteElo "1690"]
[BlackElo "2040"]
[Result "0-1"]
[Round "7"]
[TimeControl "180+2"]
[Date "2023.06.20"]
[WhiteClock "0:00:10"]
[BlackClock "0:00:20"]
[Board "187"]

1. e4 {[%clk 0:02:55]}  c6 {[%clk 0:02:58]} 2. d4 {[%clk 0:02:54]}  d5 {[%clk 0:02:58]} 3. exd5 {[%clk 0:02:55]}  cxd5 {[%clk 0:02:58]} 4. c4 {[%clk 0:02:53]}  Nf6 {[%clk 0:02:57]} 5. Nf3 {[%clk 0:02:52]}  e6 {[%clk 0:02:57]} 6. Nc3 {[%clk 0:02:49]}  Bb4 {[%clk 0:02:55]} 7. Bd2 {[%clk 0:02:44]}  O-O {[%clk 0:02:53]} 8. Be2 {[%clk 0:02:39]}  dxc4 {[%clk 0:02:52]} 9. Bxc4 {[%clk 0:02:37]}  Nc6 {[%clk 0:02:51]} 10. Be3 {[%clk 0:02:31]}  a6 {[%clk 0:02:50]} 11. O-O {[%clk 0:02:24]}  b5 {[%clk 0:02:50]} 12. Bb3 {[%clk 0:02:22]}  Bb7 {[%clk 0:02:49]} 13. Bc2 {[%clk 0:02:15]}  Rc8 {[%clk 0:02:47]} 14. a3 {[%clk 0:02:09]}  Be7 {[%clk 0:02:44]} 15. Re1 {[%clk 0:01:59]}  Nd5 {[%clk 0:02:40]} 16. Qd2 {[%clk 0:01:55]}  Nxc3 {[%clk 0:02:39]} 17. bxc3 {[%clk 0:01:54]}  Re8 {[%clk 0:02:37]} 18. Bb3 {[%clk 0:01:47]}  Na5 {[%clk 0:02:24]} 19. Ba2 {[%clk 0:01:43]}  Bxf3 {[%clk 0:02:21]} 20. gxf3 {[%clk 0:01:42]}  Nc4 {[%clk 0:02:20]} 21. Bxc4 {[%clk 0:01:42]}  Rxc4 {[%clk 0:02:18]} 22. Kh1 {[%clk 0:01:41]}  Qd5 {[%clk 0:02:16]} 23. Qe2 {[%clk 0:01:35]}  Rxc3 {[%clk 0:02:11]} 24. Rg1 {[%clk 0:01:31]}  Bf6 {[%clk 0:02:05]} 25. Rad1 {[%clk 0:01:25]}  Rec8 {[%clk 0:02:02]} 26. Rg3 {[%clk 0:01:17]}  Rxa3 {[%clk 0:01:48]} 27. Qb2 {[%clk 0:01:03]}  Rac3 {[%clk 0:01:42]} 28. Ra1 {[%clk 0:00:51]}  Bxd4 {[%clk 0:01:32]} 29. Bxd4 {[%clk 0:00:49]}  Qxd4 {[%clk 0:01:31]} 30. Rag1 {[%clk 0:00:48]}  g6 {[%clk 0:01:28]} 31. Qa2 {[%clk 0:00:43]}  R3c6 {[%clk 0:01:07]} 32. Qa5 {[%clk 0:00:34]}  Qd5 {[%clk 0:01:05]} 33. Qb4 {[%clk 0:00:28]}  Rc4 {[%clk 0:01:00]} 34. Qb3 {[%clk 0:00:27]}  Rc1 {[%clk 0:00:58]} 35. Qe3 {[%clk 0:00:22]}  Rxg1+ {[%clk 0:00:55]} 36. Rxg1 {[%clk 0:00:23]}  a5 {[%clk 0:00:53]} 37. Kg2 {[%clk 0:00:17]}  a4 {[%clk 0:00:52]} 38. Rc1 {[%clk 0:00:18]}  Rxc1 {[%clk 0:00:50]} 39. Qxc1 {[%clk 0:00:19]}  h5 {[%clk 0:00:43]} 40. Qc8+ {[%clk 0:00:19]}  Kg7 {[%clk 0:00:41]} 41. Qc3+ {[%clk 0:00:20]}  e5 {[%clk 0:00:38]} 42. Qb4 {[%clk 0:00:19]}  h4 {[%clk 0:00:30]} 43. Qxh4 {[%clk 0:00:19]}  a3 {[%clk 0:00:29]} 44. Qb4 {[%clk 0:00:15]}  a2 {[%clk 0:00:28]} 45. Qb2 {[%clk 0:00:15]}  b4 {[%clk 0:00:27]} 46. Qa1 {[%clk 0:00:13]}  b3 {[%clk 0:00:27]} 47. Qb2 {[%clk 0:00:14]}  Qd4 {[%clk 0:00:27]} 48. Qxb3 {[%clk 0:00:13]}  a1=Q {[%clk 0:00:26]} 49. Qc2 {[%clk 0:00:12]}  Qac3 {[%clk 0:00:26]} 50. Qe2 {[%clk 0:00:12]}  Qf4 {[%clk 0:00:25]} 51. h3 {[%clk 0:00:10]}  Qc6 {[%clk 0:00:23]} 52. Qe3 {[%clk 0:00:07]}  Qxe3 {[%clk 0:00:22]} 53. fxe3 {[%clk 0:00:08]}  Qc2+ {[%clk 0:00:22]} 54. Kg3 {[%clk 0:00:08]}  Qe2 {[%clk 0:00:22]} 55. e4 {[%clk 0:00:07]}  Qe3 {[%clk 0:00:22]} 56. h4 {[%clk 0:00:08]}  Qf4+ {[%clk 0:00:22]} 57. Kh3 {[%clk 0:00:08]}  Qxf3+ {[%clk 0:00:22]} 58. Kh2 {[%clk 0:00:08]}  Qxe4 {[%clk 0:00:21]} 59. Kg3 {[%clk 0:00:07]}  Qf4+ {[%clk 0:00:21]} 60. Kh3 {[%clk 0:00:08]}  Qf3+ {[%clk 0:00:21]} 61. Kh2 {[%clk 0:00:08]}  Qg4 {[%clk 0:00:21]} 62. h5 {[%clk 0:00:08]}  Qxh5+ {[%clk 0:00:20]} 63. Kg2 {[%clk 0:00:07]}  e4 {[%clk 0:00:20]} 64. Kf2 {[%clk 0:00:08]}  Qf3+ {[%clk 0:00:20]} 65. Ke1 {[%clk 0:00:08]}  Qg2 {[%clk 0:00:20]} 66. Kd1 {[%clk 0:00:07]}  Kf6 {[%clk 0:00:20]} 67. Ke1 {[%clk 0:00:07]}  Ke5 {[%clk 0:00:20]} 68. Kd1 {[%clk 0:00:08]}  Kd4 {[%clk 0:00:21]} 69. Ke1 {[%clk 0:00:09]}  Kd3 {[%clk 0:00:21]} 70. Kd1 {[%clk 0:00:10]}  Qd2# {[%clk 0:00:20]} 0-1


[Site "https://www.chess.com"]

[Event "Titled Tuesday Blitz June 20 Early 2023"]
[White "campochess"]
[Black "profedechess93"]
[WhiteElo "2166"]
[BlackElo "2554"]
[Result "0-1"]
[Round "7"]
[TimeControl "180+2"]
[Date "2023.06.20"]
[WhiteClock "0:00:02"]
[BlackClock "0:00:34"]
[Board "188"]

1. Nf3 {[%clk 0:02:58]}  d5 {[%clk 0:02:59]} 2. c4 {[%clk 0:02:57]}  c6 {[%clk 0:02:59]} 3. cxd5 {[%clk 0:02:56]}  cxd5 {[%clk 0:03:00]} 4. g3 {[%clk 0:02:56]}  Nf6 {[%clk 0:03:00]} 5. Bg2 {[%clk 0:02:56]}  Nc6 {[%clk 0:02:59]} 6. O-O {[%clk 0:02:56]}  e5 {[%clk 0:02:57]} 7. d3 {[%clk 0:02:55]}  h6 {[%clk 0:02:55]} 8. Nc3 {[%clk 0:02:54]}  Be7 {[%clk 0:02:50]} 9. b3 {[%clk 0:02:54]}  O-O {[%clk 0:02:49]} 10. Bb2 {[%clk 0:02:54]}  Bg4 {[%clk 0:02:41]} 11. h3 {[%clk 0:02:52]}  Be6 {[%clk 0:02:40]} 12. Rc1 {[%clk 0:02:51]}  Qd7 {[%clk 0:02:37]} 13. e4 {[%clk 0:02:45]}  d4 {[%clk 0:02:35]} 14. Ne2 {[%clk 0:02:43]}  Bxh3 {[%clk 0:02:31]} 15. Rxc6 {[%clk 0:02:24]}  Bxg2 {[%clk 0:02:30]} 16. Kxg2 {[%clk 0:02:24]}  Qxc6 {[%clk 0:02:14]} 17. Nxe5 {[%clk 0:02:24]}  Qa6 {[%clk 0:02:14]} 18. a4 {[%clk 0:02:13]}  Rad8 {[%clk 0:01:56]} 19. Nxd4 {[%clk 0:02:05]}  Bd6 {[%clk 0:01:31]} 20. Nc4 {[%clk 0:02:03]}  Bc5 {[%clk 0:01:28]} 21. Nf5 {[%clk 0:02:02]}  Kh7 {[%clk 0:01:17]} 22. Qc2 {[%clk 0:01:56]}  Ng4 {[%clk 0:00:46]} 23. d4 {[%clk 0:01:54]}  Bb4 {[%clk 0:00:44]} 24. e5 {[%clk 0:01:54]}  Qg6 {[%clk 0:00:37]} 25. Qe4 {[%clk 0:01:46]}  h5 {[%clk 0:00:35]} 26. Rh1 {[%clk 0:01:28]}  Nh6 {[%clk 0:00:33]} 27. g4 {[%clk 0:01:10]}  Nxg4 {[%clk 0:00:29]} 28. Ng3 {[%clk 0:00:47]}  Qxe4+ {[%clk 0:00:28]} 29. Nxe4 {[%clk 0:00:46]}  g6 {[%clk 0:00:29]} 30. Ned6 {[%clk 0:00:40]}  Bxd6 {[%clk 0:00:29]} 31. Nxd6 {[%clk 0:00:40]}  Rd7 {[%clk 0:00:30]} 32. Rc1 {[%clk 0:00:28]}  Nh6 {[%clk 0:00:30]} 33. Ba3 {[%clk 0:00:25]}  Rfd8 {[%clk 0:00:30]} 34. a5 {[%clk 0:00:21]}  Nf5 {[%clk 0:00:30]} 35. Nxf5 {[%clk 0:00:18]}  gxf5 {[%clk 0:00:31]} 36. Bc5 {[%clk 0:00:18]}  Rc8 {[%clk 0:00:32]} 37. Rh1 {[%clk 0:00:15]}  Kg6 {[%clk 0:00:31]} 38. Kf3 {[%clk 0:00:14]}  Rc6 {[%clk 0:00:31]} 39. b4 {[%clk 0:00:14]}  b6 {[%clk 0:00:30]} 40. a6 {[%clk 0:00:13]}  bxc5 {[%clk 0:00:30]} 41. dxc5 {[%clk 0:00:13]}  Rxa6 {[%clk 0:00:31]} 42. Rb1 {[%clk 0:00:11]}  Ra3+ {[%clk 0:00:31]} 43. Kg2 {[%clk 0:00:11]}  Rd4 {[%clk 0:00:32]} 44. b5 {[%clk 0:00:11]}  Rg4+ {[%clk 0:00:32]} 45. Kf1 {[%clk 0:00:10]}  Rc4 {[%clk 0:00:33]} 46. c6 {[%clk 0:00:10]}  Rac3 {[%clk 0:00:32]} 47. b6 {[%clk 0:00:09]}  Rc1+ {[%clk 0:00:32]} 48. Rxc1 {[%clk 0:00:07]}  Rxc1+ {[%clk 0:00:33]} 49. Ke2 {[%clk 0:00:08]}  axb6 {[%clk 0:00:34]} 50. c7 {[%clk 0:00:02]}  Rxc7 {[%clk 0:00:34]} 0-1


[Site "https://www.chess.com"]